Workbook

Sheet Instructivo
F3: Impuesto a las Rentas de las Personas Físicas | J3: IRPF 2015
F4: Categoría II: Rentas del Trabajo dependiente
F5: Estimación Ajuste anual a Diciembre de 2015
J120: Desarrollado por D.G.I

Sheet Ingresos y Deducciones
G3: Impuesto a las Rentas de las Personas Físicas | K3: IRPF 2015
G4: Categoría II: Rentas del Trabajo dependiente
G5: Estimación Ajuste anual a Diciembre de 2015
D8: Tipo de Renta que percibe: | G8: Dependientes | I8: =IF(G8="Dependientes",1,IF(G8="Dependiente sin opción de AFAP",2,IF(G8="Independientes",3,IF(G8="Jubilado",4,5)))) -> 1
D13: Período de cálculo a realizar: | G13: Anual | I13: =IF(G13="Mensual",1,2) -> 2
B19: 1 - Ingresos:
B21: 1.1 | C21: Suma anual de Ingresos gravados por IRPF ……………………………………………………………… | I21: $
B23: 1.2 | C23: Aguinaldo……………………………………………………………………………………………………. | I23: $
B25: 1.3 | C25: Salario vacacional…………………………………………………………………………………….. | I25: $
B27: 4. | C27: Deducción 30% servicios fuera de la relación de dependencia……………………………….. | I27: $ | K27: =IF(G8="Independientes",-K21*0.3,0) -> 0
B29: 5 | C29: Aguinaldo: | F29: No | G29: ……………………………………………. | I29: $ | K29: 0
B32: 6 | C32: Percibirá Salario Vacacional: | F32: No | G32: ……………………………………………. | I32: $ | K32: 0
B35: 1.4 | C35: Ingresos sin considerar aguinaldo ni salario vacacional: | K35: =+K21 -> 0
B37: 1.5 | C37: Aguinaldo más salario vacacional: | K37: =+K23+K25 -> 0
B40: 2 - Deducciones:
B42: 2.1 | C42: Cantidad de personas a cargo: | G42: Deducción de 100% | K42: =IF(G42="Deducción de 100%",1,IF(G42="Deducción de 50%",0.5,0)) -> 1
F44: Sin Discapacidad (hijos menores)……………………………. | K44: 0
F45: Con Discapacidad………………………………………….. | K45: 0
F46: Importe a Deducir…………………………………… | I46: $ | K46: =IF(I13=2,(((K44*13)*Parámetros!I9)+(K45*26*Parámetros!I9)))*K42 -> 0
B47: 2.2 | C47: Si es profesional:
F48: Fondo de solidaridad…………………. ……………………… | H48: 0 | I48: $ | K48: =IF(H48="0",0,IF(H48="1/2 BPC",1/2*Parámetros!I9,IF(H48="1 BPC",Parámetros!I9,IF(H48="5/3 BPC",5/3*Parámetros!I9,0)))) -> 0
F49: Adicional Fondo de solidaridad……………………… | H49: NO | I49: $ | K49: =IF(H49="SI",5/3*Parámetros!I9,0) -> 0
F50: Aporte Anual a CJPPU…………………………………………… | I50: $ | K50: 0
B52: 2.3 | C52: Aportes a la Seguridad Social anualizados:
F54: Aportes Jubilatorios………………………………………………. | I54: $
F55: Aportes Seguro de Salud o Enfermedad…………………………………………. | I55: $
F56: Aporte FRL………………………………………………………….. | I56: $
B58: 2.4 | C58: Otras Deducciones (Ingresar el monto anual a deducir)………………………………………………………………………. | I58: $ | K58: 0
B60: 2.5 | C60: Total Deducciones: | K60: =K46+(K49)+K48+K54+K55+K56+K58+K50 -> 0
B63: 3 - Determinación del ajuste anual:
B65: 3.1 | C65: Corresponde el ajuste anual | G65: Si
B67: 3.2 | C67: Opción reducción retención NF | G67: No
B69: 3.3 | C69: Monto estimado IRPF ANUAL……………………………………………………………………………. | I69: $ | K69: =+'Detalles de Liquidación Anual'!I50 -> 0
B71: 3.4 | C71: Total retenciones realizadas por el responsable (hasta el mes de noviembre inclusive)…………………………………………………………… | I71: $
B73: 3.5 | C73: Si optó por reducción NF ingrese monto rentas computables del mes de diciembre………………… | I73: $ | K73: 0
B75: 3.6 | C75: 20% monto rentas computables del mes de diciembre………………………………………………… | I75: $ | K75: =K73*0.2 -> 0
B77: 3.7 | C77: Monto ajuste anual a realizar 12/2015 | K77: =+IF(K69<K71,0,IF(G67="No",IF(K69>K71,K69-K71,0),MIN(K69-K71,K75))) -> 0
D81: = Campos habilitados para ingreso de datos
D82: = Campos calculados
D83: = Campos NO habilitados para opción elegida
L86: Desarrollado por D.G.I.

Sheet Detalles de Liquidación Anual
F3: Impuesto a las Rentas de las Personas Físicas | I3: IRPF 2015
F4: Categoría II: Rentas del Trabajo dependiente
F5: Estimación Ajuste anual a Diciembre de 2015
C8: 1 - Ingresos del ejercicio | K8: =+#REF!-G27 ->  | L8: =+F28-F27 -> 109872 | M8: =+I22 -> 0
C9: Ingresos nominales………………………………………………………………………………………... | I9: =IF('Ingresos y Deducciones'!I13=2,+'Ingresos y Deducciones'!K21,0) -> 0 | K9: =+K8-G28 ->  | L9: =+F29-F28 -> 183120 | M9: =+M8-#REF! -> 
C10: Aguinaldo más salario vacacional………………………………………………………………………. | I10: =+'Ingresos y Deducciones'!K37 -> 0 | K10: =+K9-G29 ->  | L10: =+F30-F29 -> 1281840 | M10: =+M9-#REF! -> 
C11: Total Ingresos……………………………………………………………………………………………. | I11: =SUM(I9:I10) -> 0
C13: 2 - Deducciones del ejercicio
C14: Aportes Jubilatorios……………………………………………………………………………………… | I14: =IF('Ingresos y Deducciones'!I13=2,'Ingresos y Deducciones'!$K$54,0) -> 0
C15: Aportes Seguro de Salud o Enfermedad………………………………………………………………….. | I15: =IF('Ingresos y Deducciones'!I13=2,'Ingresos y Deducciones'!$K$55,0) -> 0
C16: Aportes FRL………………………………………………………………………………………………….. | I16: =IF('Ingresos y Deducciones'!I13=2,'Ingresos y Deducciones'!K56,0) -> 0
C17: Hijos o personas a cargo………………………………………………………………………………… | I17: =IF('Ingresos y Deducciones'!I13=2,'Ingresos y Deducciones'!$K$46,0) -> 0
C18: Fondo de solidaridad……………………………………………………………………………………… | I18: =+'Ingresos y Deducciones'!K48 -> 0
C19: Adicional Fondo de solidaridad………………………………………………………………………….. | I19: =+'Ingresos y Deducciones'!K49 -> 0
C20: Aporte a CJPPU…………………………………………………………………………………………. | I20: =+'Ingresos y Deducciones'!K50 -> 0
C21: Otras deducciones………………………………………………………………………………………. | I21: =IF('Ingresos y Deducciones'!I13=2,'Ingresos y Deducciones'!K58,0) -> 0
C22: Total Deducciones………………………………………………………………………………………… | I22: =SUM(I14:I21) -> 0
C24: 3 - Cálculo del impuesto/deducciones según escala de rentas
C26: Rangos BPC | E26: Desde | F26: Hasta | G26: Ingresos | H26: Tasa | I26: Impuesto
A27: =$I$9 -> 0 | C27: =CONCATENATE(TEXT(Parámetros!C13,"0")," A ",TEXT(Parámetros!F13,"0")," BPC") -> 0 A 84 BPC | E27: =+Parámetros!C13*Parámetros!$I$9 -> 0 | F27: =+Parámetros!F13*Parámetros!$I$9 -> 256368 | G27: =MIN(A27,(F27-E27)) -> 0 | H27: =Parámetros!I13 -> 0 | I27: =G27*H27 -> 0
A28: =IF(A27>(F27-E27),A27-(F27-E27),0) -> 0 | C28: =CONCATENATE(TEXT(Parámetros!C14,"0")," A ",TEXT(Parámetros!F14,"0")," BPC") -> 84 A 120 BPC | E28: =+Parámetros!C14*Parámetros!$I$9 -> 256368 | F28: =+Parámetros!F14*Parámetros!$I$9 -> 366240 | G28: 0 | H28: =Parámetros!I14 -> 0.1 | I28: 0
A29: 0 | C29: =CONCATENATE(TEXT(Parámetros!C15,"0")," A ",TEXT(Parámetros!F15,"0")," BPC") -> 120 A 180 BPC | E29: =+Parámetros!C15*Parámetros!$I$9 -> 366240 | F29: =+Parámetros!F15*Parámetros!$I$9 -> 549360 | G29: 0 | H29: =Parámetros!I15 -> 0.15 | I29: 0
A30: 0 | C30: =CONCATENATE(TEXT(Parámetros!C16,"0")," A ",TEXT(Parámetros!F16,"0")," BPC") -> 180 A 600 BPC | E30: =+Parámetros!C16*Parámetros!$I$9 -> 549360 | F30: =+Parámetros!F16*Parámetros!$I$9 -> 1831200 | G30: 0 | H30: =Parámetros!I16 -> 0.2 | I30: 0
A31: 0 | C31: =CONCATENATE(TEXT(Parámetros!C17,"0")," A ",TEXT(Parámetros!F17,"0")," BPC") -> 600 A 900 BPC | E31: =+Parámetros!C17*Parámetros!$I$9 -> 1831200 | F31: =+Parámetros!F17*Parámetros!$I$9 -> 2746800 | G31: 0 | H31: =Parámetros!I17 -> 0.22 | I31: 0
A32: 0 | C32: =CONCATENATE(TEXT(Parámetros!C18,"0")," A ",TEXT(Parámetros!F18,"0")," BPC") -> 900 A 1380 BPC | E32: =+Parámetros!C18*Parámetros!$I$9 -> 2746800 | F32: =+Parámetros!F18*Parámetros!$I$9 -> 4211760 | G32: 0 | H32: =Parámetros!I18 -> 0.25 | I32: 0
A33: 0 | C33: =CONCATENATE("+ DE ",TEXT(Parámetros!C19,"0"), " BPC") -> + DE 1380 BPC | E33: =+Parámetros!C19*Parámetros!$I$9 -> 4211760 | G33: =A33 -> 0 | H33: =Parámetros!I19 -> 0.3 | I33: 0
G35: =SUM(G27:G33) -> 0 | I35: =SUM(I27:I33) -> 0
C37: Rangos BPC | E37: Desde | F37: Hasta | G37: Deducciones | H37: Tasa | I37: A Deducir
A38: =I22 -> 0 | C38: =CONCATENATE(TEXT(Parámetros!C22,"0")," A ",TEXT(Parámetros!F22,"0")," BPC") -> 0 A 36 BPC | E38: =+Parámetros!C22*Parámetros!$I$9 -> 0 | F38: =+Parámetros!F22*Parámetros!$I$9 -> 109872 | G38: =MIN(A38,(F38-E38)) -> 0 | H38: =Parámetros!I22 -> 0.1 | I38: =G38*H38 -> 0
A39: =IF(A38>(F38-E38),A38-(F38-E38),0) -> 0 | C39: =CONCATENATE(TEXT(Parámetros!C23,"0")," A ",TEXT(Parámetros!F23,"0")," BPC") -> 36 A 96 BPC | E39: =+Parámetros!C23*Parámetros!$I$9 -> 109872 | F39: =+Parámetros!F23*Parámetros!$I$9 -> 292992 | G39: =MIN(A39,(F39-E39)) -> 0 | H39: =Parámetros!I23 -> 0.15 | I39: 0
A40: =IF(A39>(F39-E39),A39-(F39-E39),0) -> 0 | C40: =CONCATENATE(TEXT(Parámetros!C24,"0")," A ",TEXT(Parámetros!F24,"0")," BPC") -> 96 A 516 BPC | E40: =+Parámetros!C24*Parámetros!$I$9 -> 292992 | F40: =+Parámetros!F24*Parámetros!$I$9 -> 1574832 | G40: =MIN(A40,(F40-E40)) -> 0 | H40: =Parámetros!I24 -> 0.2 | I40: 0
A41: =IF(A40>(F40-E40),A40-(F40-E40),0) -> 0 | C41: =CONCATENATE(TEXT(Parámetros!C25,"0")," A ",TEXT(Parámetros!F25,"0")," BPC") -> 516 A 816 BPC | E41: =+Parámetros!C25*Parámetros!$I$9 -> 1574832 | F41: =+Parámetros!F25*Parámetros!$I$9 -> 2490432 | G41: =MIN(A41,(F41-E41)) -> 0 | H41: =Parámetros!I25 -> 0.22 | I41: 0
A42: =IF(A41>(F41-E41),A41-(F41-E41),0) -> 0 | C42: =CONCATENATE(TEXT(Parámetros!C26,"0")," A ",TEXT(Parámetros!F26,"0")," BPC") -> 816 A 1296 BPC | E42: =+Parámetros!C26*Parámetros!$I$9 -> 2490432 | F42: =+Parámetros!F26*Parámetros!$I$9 -> 3955392 | G42: =MIN(A42,(F42-E42)) -> 0 | H42: =Parámetros!I26 -> 0.25 | I42: 0
A43: =IF(A42>(F42-E42),A42-(F42-E42),0) -> 0 | C43: =CONCATENATE("+ DE ",TEXT(Parámetros!C27,"0"), " BPC") -> + DE 1296 BPC | E43: =+Parámetros!C27*Parámetros!$I$9 -> 3955392 | F43: - | G43: =A43 -> 0 | H43: =Parámetros!I27 -> 0.3 | I43: 0
G44: =SUM(G38:G43) -> 0 | I44: =SUM(I38:I43) -> 0
C46: 4 - IRPF estimado sin incluir aguinaldo ni salario vacacional | I46: =IF('Ingresos y Deducciones'!G67="No",IF((I35-I44)>0,(I35-I44),0),IF((I35-I44)>0,(I35-I44)*0.95,0)) -> 0
C48: Tasa a aplicar correspondiente al aguinaldo y sueldo anual complementario | H48: =+IF(I46=0,0,IF(I33>0,H33,IF(I32>0,H32,IF(I31>0,H31,IF(I30>0,H30,IF(I29>0,H29,IF(I28>0,H28,0))))))) -> 0
C49: 5 - IRPF correspondiente al aguinaldo y salario vacacional | I49: =+IF('Ingresos y Deducciones'!G67="No",I10*H48,I10*H48*0.95) -> 0
C50: 6 - Monto estimado IRPF (4)+(5) | I50: =IF(AND('Ingresos y Deducciones'!G65="No",'Ingresos y Deducciones'!K21<=324000),0,I46+I49) -> 0
I52: Desarrollado por D.G.I.
C53: =IF(AND(OR('Ingresos y Deducciones'!I8=1,'Ingresos y Deducciones'!I8=2),'Ingresos y Deducciones'!K21+'Ingresos y Deducciones'!K23<=Parámetros!#REF!),6*('Ingresos y Deducciones'!K21+'Ingresos y Deducciones'!K23)*Parámetros!#REF!,0) ->  | D53: =IF(AND(OR('Ingresos y Deducciones'!I8=1,'Ingresos y Deducciones'!I8=2),'Ingresos y Deducciones'!K29+'Ingresos y Deducciones'!K30<=Parámetros!#REF!),('Ingresos y Deducciones'!K29+'Ingresos y Deducciones'!K30)*Parámetros!#REF!,0) ->  | E53: =IF(AND(OR('Ingresos y Deducciones'!I8=4,'Ingresos y Deducciones'!I8=5),'Ingresos y Deducciones'!K21>=Parámetros!#REF!),6*'Ingresos y Deducciones'!K21*Parámetros!#REF!,0) -> 
C54: =IF(AND(OR('Ingresos y Deducciones'!I8=1,'Ingresos y Deducciones'!I8=2),'Ingresos y Deducciones'!K21+'Ingresos y Deducciones'!K23>Parámetros!#REF!,'Ingresos y Deducciones'!K21+'Ingresos y Deducciones'!K23<=Parámetros!#REF!),6*('Ingresos y Deducciones'!K21+'Ingresos y Deducciones'!K23)*Parámetros!#REF!,0) ->  | D54: =IF(AND(OR('Ingresos y Deducciones'!I8=1,'Ingresos y Deducciones'!I8=2),'Ingresos y Deducciones'!K29+'Ingresos y Deducciones'!K29>Parámetros!#REF!,'Ingresos y Deducciones'!K29+'Ingresos y Deducciones'!K30<=Parámetros!#REF!),('Ingresos y Deducciones'!K29+'Ingresos y Deducciones'!K30)*Parámetros!#REF!,0) -> 
C55: =IF(AND(OR('Ingresos y Deducciones'!I8=1,'Ingresos y Deducciones'!I8=2),'Ingresos y Deducciones'!K21+'Ingresos y Deducciones'!K23>Parámetros!#REF!),6*('Ingresos y Deducciones'!K21+'Ingresos y Deducciones'!K23)*Parámetros!#REF!,0) ->  | D55: =IF(AND(OR('Ingresos y Deducciones'!I8=1,'Ingresos y Deducciones'!I8=2),'Ingresos y Deducciones'!K29+'Ingresos y Deducciones'!K30>Parámetros!#REF!),('Ingresos y Deducciones'!K29+'Ingresos y Deducciones'!K30)*Parámetros!#REF!,0) -> 

Sheet Parámetros
E3: Impuesto a las Rentas de las Personas Físicas | I3: IRPF 2015
E4: Categoría II: Rentas del Trabajo dependiente
E5: Estimación Ajuste anual a Diciembre de 2015
C9: Valor de la Base de Prestaciones y Contribuciones (BPC) | I9: 3052
C11: Escala de rentas para cálculo de impuesto
C12: Desde | F12: Hasta | I12: Tasa
C13: 0 | D13: BPC | E13: =C13*$I$9 -> 0 | F13: 84 | G13: BPC | H13: =F13*$I$9 -> 256368 | I13: 0
C14: 84 | D14: BPC | E14: 256368 | F14: 120 | G14: BPC | H14: 366240 | I14: 0.1
C15: 120 | D15: BPC | E15: 366240 | F15: 180 | G15: BPC | H15: 549360 | I15: 0.15
C16: 180 | D16: BPC | E16: 549360 | F16: =50*12 -> 600 | G16: BPC | H16: 1831200 | I16: 0.2
C17: =+F16 -> 600 | D17: BPC | E17: 1831200 | F17: =75*12 -> 900 | G17: BPC | H17: 2746800 | I17: 0.22
C18: =+F17 -> 900 | D18: BPC | E18: 2746800 | F18: =115*12 -> 1380 | G18: BPC | H18: 4211760 | I18: 0.25
C19: =+F18 -> 1380 | D19: BPC | E19: 4211760 | I19: 0.3
C20: Escala de rentas para deducciones
C21: Desde | F21: Hasta | I21: Tasa
C22: 0 | D22: BPC | E22: =C22*$I$9 -> 0 | F22: =+F14-$F$13 -> 36 | G22: BPC | H22: =F22*$I$9 -> 109872 | I22: 0.1
C23: =+F22 -> 36 | D23: BPC | E23: 109872 | F23: =+F15-$F$13 -> 96 | G23: BPC | H23: =F23*$I$9 -> 292992 | I23: 0.15
C24: =+F23 -> 96 | D24: BPC | E24: 292992 | F24: =+F16-$F$13 -> 516 | G24: BPC | H24: =F24*$I$9 -> 1574832 | I24: 0.2
C25: =+F24 -> 516 | D25: BPC | E25: 1574832 | F25: =+F17-$F$13 -> 816 | G25: BPC | H25: =F25*$I$9 -> 2490432 | I25: 0.22
C26: =+F25 -> 816 | D26: BPC | E26: 2490432 | F26: =+F18-$F$13 -> 1296 | G26: BPC | H26: =F26*$I$9 -> 3955392 | I26: 0.25
C27: =+F26 -> 1296 | D27: BPC | E27: 3955392 | I27: 0.3
I29: Desarrollado por D.G.I.
